bitfinex/quotes_ETHUSD_20260203
["timestamp","ask_amount","ask_price","bid_price","bid_amount"]
[1770136623583,0.93,2252.9,2251.9,12.01618173]
[1770136624191,0.93,2252.9,2251.9,12.02951269]
[1770136624577,0.93,2252.9,2251.9,12.01618173]
[1770136625000,1.10973011,2252.8,2251.5,1.11037086]
[1770136625181,2.20148721,2252.8,2251.6,1.7568036]
[1770136625376,5.36892045,2252.9,2251.6,13.77298533]
[1770136625377,4.681,2252.9,2251.6,13.77298533]
[1770136625620,1.10950641,2253.3,2252.1,12.02951269]
[1770136626180,1.10950641,2253.3,2252.1,12.01618173]
[1770136626505,1.10950641,2253.3,2252.3,12.01618173]
[1770136627074,1.86299436,2253.4,2252.4,13.12610891]
[1770136627316,1.86299436,2253.4,2252.5,1.75658177]
[1770136627490,1.86299436,2253.4,2252.4,12.01618173]
[1770136627895,2.03943787,2253.4,2252.4,12.01618173]
[1770136628134,2.03943787,2253.4,2251.9,12.01618173]
[1770136628282,0.90285458,2253.3,2251.9,16.45684715]
[1770136628627,0.90315109,2253.2,2251.9,12.01618173]
[1770136628818,0.1024,2253.3,2252.3,1.10997603]
[1770136628996,2.01380478,2253.2,2252.0,2.31169738]
[1770136629317,0.2335703,2252.8,2251.6,1.7568036]
[1770136629627,0.2335703,2252.8,2251.4,13.12658015]
[1770136629628,0.1024,2252.6,2251.5,1.11034842]
[1770136629789,0.1024,2252.6,2251.4,12.01618173]
[1770136629790,1.22793193,2252.9,2251.8,1.11021536]
[1770136630110,0.90482423,2252.8,2252.0,1.11011549]
[1770136630310,0.93,2253.1,2252.1,0.55506862]
[1770136630481,1.1095331,2253.2,2252.1,0.55506862]
[1770136630810,0.931,2253.1,2252.1,0.55506862]
[1770136631213,0.3359703,2252.9,2251.5,12.01618173]
[1770136631379,0.2335703,2252.7,2251.5,12.01618173]
[1770136631582,0.90604373,2252.6,2251.8,1.11020098]
[1770136631817,2.61914468,2253.0,2252.1,1.11007394]
[1770136631818,1.1096316,2253.0,2252.1,1.11007394]
[1770136632021,0.931,2252.9,2252.1,2.86673733]
[1770136633286,2.04068637,2252.9,2252.1,2.86673733]
[1770136633484,2.04068428,2252.9,2252.1,2.86673733]
[1770136633688,2.04068428,2252.9,2252.0,1.11010035]
[1770136633922,0.90741597,2252.8,2251.6,4.44117852]
[1770136634132,0.90741597,2252.7,2252.0,1.11010319]
[1770136634419,3.16621621,2252.9,2251.7,1.11023372]
[1770136634420,0.90741597,2252.6,2251.7,1.11023372]
[1770136634582,0.90741597,2252.5,2251.6,12.01618173]
[1770136634786,0.90833921,2252.4,2251.3,16.45801571]
[1770136634987,1.12553193,2252.8,2251.9,1.11015271]
[1770136635214,3.14367916,2252.9,2251.8,4.44088913]
[1770136635408,2.04060946,2253.1,2251.9,13.77291111]
[1770136635609,2.03554826,2253.0,2251.9,12.01618173]
[1770136635997,2.03554826,2253.0,2251.7,0.001]
[1770136636196,1.12553193,2252.8,2251.7,1.11126377]
[1770136636424,1.12553193,2252.6,2251.7,0.001]
[1770136636608,0.91001633,2252.5,2251.7,0.001]
[1770136636812,0.91001633,2252.4,2251.7,0.001]
[1770136637010,0.91001633,2252.4,2251.7,1.11124661]
[1770136637388,0.91001633,2252.3,2251.7,0.001]
[1770136637589,0.91001633,2252.2,2251.7,0.001]
[1770136637804,1.12553193,2252.2,2251.7,0.001]
[1770136638021,2.03554826,2252.1,2251.7,0.001]
[1770136638228,2.03554826,2252.0,2251.7,0.001]
[1770136638412,1.12553193,2251.8,2251.0,0.001]
[1770136638718,0.91001633,2251.7,2251.0,13.12779852]
[1770136638898,1.13965726,2251.8,2251.4,1.11041843]
[1770136639087,0.931,2252.0,2251.4,0.55524472]
[1770136639295,0.931,2252.0,2251.1,1.11056816]
[1770136639494,1.13965726,2252.3,2251.3,12.02951269]
[1770136639798,1.13965726,2252.0,2251.0,1.11158877]
[1770136640007,1.13965726,2252.0,2251.0,13.1277705]
[1770136640206,1.13965726,2251.7,2251.0,13.12779382]
[1770136640516,1.50951308,2252.0,2251.1,0.01333096]
[1770136640722,0.931,2252.2,2251.2,12.88700702]
[1770136640904,2.61946398,2252.4,2251.4,12.88700702]
[1770136641234,2.04092938,2252.4,2251.4,12.88700702]
[1770136641444,0.931,2252.4,2251.5,13.99737788]
[1770136641640,0.931,2252.4,2251.6,1.84388613]
[1770136641936,0.931,2252.4,2251.6,14.73089315]
[1770136642313,1.50951308,2252.8,2251.8,12.88700702]
[1770136642508,1.50951308,2253.0,2251.9,12.88700702]
[1770136642717,2.61912965,2253.1,2252.0,12.90033798]
[1770136642919,2.61912965,2253.1,2252.1,1.2900338]
[1770136643515,2.61912965,2253.1,2252.2,1.11002575]
[1770136643712,1.50951308,2252.9,2252.1,2.40007086]
[1770136643933,1.50951308,2253.0,2252.1,2.40007086]
[1770136644333,1.50951308,2252.9,2252.1,2.40007086]
[1770136644636,1.50951308,2252.8,2252.1,2.40008829]
[1770136644798,1.50951308,2252.8,2252.1,1.11005449]
[1770136645204,1.50951308,2252.7,2252.1,1.11005449]
[1770136645512,8.38571215,2253.2,2252.2,12.90033798]
[1770136645513,1.11063583,2253.2,2252.2,12.90033798]
[1770136645715,0.0011,2253.2,2252.2,12.90033798]
[1770136645907,0.0011,2253.4,2252.6,12.90033798]
[1770136646107,0.0011,2253.4,2252.7,1.30469785]
[1770136646305,2.2467895,2254.0,2253.2,0.01333096]
[1770136646622,5.25233563,2254.7,2253.5,0.01333096]
[1770136646623,3.35566817,2254.6,2253.5,0.01333096]
[1770136646925,2.2467895,2254.5,2253.3,12.88700702]
[1770136647106,2.2467895,2254.5,2253.4,1.2887007]
[1770136647302,0.931,2254.4,2253.3,12.90033798]
[1770136647513,2.03995273,2254.4,2253.4,1.12276559]
[1770136647825,2.03995273,2254.4,2253.3,1.1094467]
[1770136648009,1.10884414,2254.6,2253.3,13.99645372]
[1770136648207,1.10884414,2254.6,2253.5,12.90033798]
[1770136648439,1.10884414,2254.6,2253.5,12.88700702]
[1770136648735,1.10884414,2254.6,2253.4,1.84345191]
[1770136648940,1.10884414,2254.6,2253.3,1.1094467]
[1770136649435,1.10884414,2254.6,2253.2,4.43805857]
[1770136649639,1.10884414,2254.6,2253.2,4.45138953]
[1770136650343,0.2335703,2254.5,2253.0,1.10960904]
[1770136650512,3.28414942,2254.5,2253.1,1.10957423]
[1770136650708,0.2335703,2254.3,2252.4,17.3265228]
[1770136651015,0.2335703,2254.1,2252.5,1.10984753]
[1770136651210,0.2335703,2254.1,2252.4,17.32664155]
[1770136651211,0.931,2254.0,2252.8,1.10968724]
[1770136651445,0.91394453,2253.9,2252.8,12.88700702]
[1770136651643,0.91394453,2253.9,2252.9,1.7472744]
[1770136651644,2.02314207,2253.9,2252.9,1.7472744]
[1770136651820,5.36757153,2254.0,2252.9,1.7472744]
[1770136651821,2.04016576,2254.0,2252.9,1.7472744]
[1770136652013,2.04016576,2254.0,2252.9,1.73394344]
[1770136652214,0.9143113,2253.9,2252.9,1.73394344]
[1770136652519,0.2335703,2253.7,2252.0,0.01333096]
[1770136652721,0.2335703,2253.5,2252.0,1.11009241]
[1770136652930,3.3946711,2253.5,2252.1,1.11007218]
[1770136653230,2.4803598,2253.5,2252.3,12.88700702]
[1770136653545,0.75242026,2253.9,2251.9,4.4406797]
[1770136653546,0.0011,2254.2,2253.2,0.01333096]
[1770136653711,1.11015973,2254.2,2253.0,1.1096316]
[1770136654038,1.11015973,2254.2,2253.1,0.5561489]
[1770136654339,1.11015973,2254.2,2252.9,1.10966524]
[1770136654532,0.01333096,2254.1,2252.9,1.10966524]
[1770136655041,0.01333096,2253.6,2252.5,4.43949273]
[1770136655339,0.01333096,2253.6,2251.6,1.84388613]
[1770136655340,0.01333096,2253.2,2252.3,1.10996346]
[1770136655548,4.45114998,2253.4,2251.8,12.88700702]
[1770136655715,4.99654367,2253.4,2251.9,1.73279122]
[1770136656511,0.01333096,2253.2,2251.9,1.73279122]
[1770136656716,0.93,2253.1,2251.9,1.73279122]
[1770136657347,0.93,2253.1,2251.7,4.44090515]
[1770136657646,1.1096316,2253.0,2251.5,4.44109139]
[1770136657854,0.01333096,2253.2,2251.5,17.32809841]
[1770136658041,0.93,2253.1,2251.6,12.88700702]
[1770136658846,0.55872465,2253.4,2251.8,12.88700702]
[1770136659048,12.35403569,2254.2,2251.7,0.94333096]
[1770136659049,5.37984943,2254.1,2252.2,12.90033798]
[1770136659250,5.37984943,2254.1,2252.3,0.93]
[1770136659460,0.01333096,2254.0,2252.3,0.93]
[1770136659617,1.10917265,2254.0,2252.4,1.10992718]
[1770136659952,0.0011,2254.2,2252.5,12.90033798]
[1770136660245,0.0011,2254.2,2252.7,12.90033798]
[1770136660450,0.0011,2254.4,2252.9,12.90033798]
[1770136660650,0.0011,2254.4,2253.1,12.88700702]
[1770136660853,1.12341025,2254.4,2252.8,0.93]
[1770136661023,0.57057705,2254.3,2252.8,0.93]
[1770136661214,0.01333096,2254.2,2252.8,0.93]
[1770136661421,0.57057705,2254.3,2252.8,0.93]
[1770136661640,0.01333096,2254.2,2252.8,0.93]
[1770136661842,1.1090901,2254.1,2252.9,1.10968085]
[1770136662029,0.55587815,2254.0,2252.9,1.10968085]
[1770136662246,1.10907233,2254.2,2252.9,1.10968085]
[1770136662247,0.01333096,2254.1,2252.9,1.10968085]
[1770136662551,0.01333096,2254.0,2252.9,1.10968085]
[1770136662735,1.12240329,2254.2,2252.9,1.10968085]
[1770136662932,0.55724609,2254.3,2252.9,13.99668787]
[1770136663131,0.0011,2254.4,2252.9,13.99668787]
[1770136663331,0.0011,2254.4,2253.0,1.93787423]
[1770136663536,0.0011,2254.4,2253.0,14.82488125]
[1770136663742,0.0011,2254.4,2253.0,1.93787423]
[1770136663743,1.11005267,2254.4,2253.0,1.93787423]
[1770136663949,0.01333096,2254.2,2252.9,1.10968085]
[1770136664144,1.11005267,2254.4,2252.9,1.10968085]
[1770136664331,0.0011,2254.4,2252.9,1.10968085]
[1770136664531,0.01333096,2254.3,2252.9,1.10968085]
[1770136664731,0.0011,2253.8,2252.9,1.10968085]
[1770136664934,0.0011,2253.8,2253.0,0.55494043]
[1770136665135,1.12337597,2254.4,2253.0,0.55494043]
[1770136665333,0.0011,2254.4,2253.0,13.44194745]
[1770136665535,0.0011,2254.4,2253.0,14.37194745]
[1770136665734,0.0011,2254.0,2253.0,14.37194745]
[1770136665937,0.0011,2254.0,2253.2,1.1095331]
[1770136666660,0.0011,2254.0,2252.9,4.43865828]
[1770136666830,0.01443096,2254.0,2253.1,1.10957694]
[1770136667025,0.01443096,2254.0,2253.1,1.10957935]
[1770136667264,0.0011,2254.0,2253.1,1.10957935]
[1770136667772,0.01333096,2253.9,2252.8,4.43985064]
[1770136668058,1.10922508,2253.9,2253.0,1.10962437]
[1770136668431,1.12255604,2253.9,2253.0,1.10962437]
[1770136669228,1.12255604,2253.9,2252.8,0.001]
[1770136669229,0.01333096,2253.5,2252.8,0.001]
[1770136669465,0.01333096,2253.6,2252.8,0.001]
[1770136669664,0.91484731,2253.5,2252.8,1.11069331]
[1770136669962,0.0011,2254.0,2252.8,0.001]
[1770136670262,1.11024726,2254.0,2252.8,0.001]
[1770136670638,1.11024309,2254.0,2252.8,0.001]
[1770136670828,0.0011,2254.0,2252.8,0.001]
[1770136671026,1.11024118,2254.0,2252.8,0.001]
[1770136671764,1.75924785,2254.0,2252.8,0.001]
[1770136671974,0.0011,2254.0,2252.8,0.001]
[1770136672279,0.0011,2254.0,2252.8,12.02392597]
[1770136674029,0.0011,2254.0,2252.9,1.10968085]
[1770136674229,0.0011,2254.0,2253.0,11.7595629]
[1770136674857,0.0011,2254.4,2253.0,11.7595629]
[1770136675060,0.0011,2254.4,2253.2,11.7595629]
[1770136675361,0.9311,2254.9,2253.4,11.7595629]
[1770136675362,1.10979785,2254.9,2253.4,11.7595629]
[1770136676233,0.0011,2254.9,2253.5,12.8689483]
[1770136676463,0.0011,2254.9,2253.6,12.6895629]
[1770136676647,0.0011,2254.9,2253.7,13.13945773]
[1770136677863,0.0011,2254.9,2253.7,13.15278869]
[1770136678170,0.0011,2255.1,2254.0,12.8687022]
[1770136678740,0.0011,2255.1,2254.1,0.93]
[1770136679468,0.0011,2254.7,2254.1,12.6895629]
[1770136679669,0.0011,2254.9,2254.2,13.14076622]
[1770136679984,0.22706281,2256.0,2254.2,13.14076622]
[1770136679985,0.0011,2256.1,2254.7,11.7595629]
[1770136680147,0.0011,2256.1,2255.0,1.10864745]
[1770136680467,0.0011,2256.1,2255.0,12.88154131]
[1770136680669,1.52739738,2257.1,2255.0,12.88154131]
[1770136680670,15.23183316,2257.2,2255.1,13.50584007]
[1770136680838,6.27532247,2257.1,2255.3,11.7595629]
[1770136681192,5.3738056,2257.1,2255.4,12.70289386]
[1770136681370,0.01333096,2256.9,2255.4,0.93]
[1770136681669,0.01333096,2256.6,2255.1,1.73294621]
[1770136681873,0.01333096,2256.4,2255.1,1.73294621]
[1770136682184,1.12114325,2256.7,2255.3,1.10849997]
[1770136682340,1.10781229,2256.7,2255.3,1.10849997]
[1770136682664,0.01333096,2256.4,2255.2,0.28415937]
[1770136682892,12.61015078,2256.3,2254.7,0.93]
[1770136683038,0.01333096,2255.8,2254.7,1.1087908]
[1770136683234,0.01333096,2255.8,2254.6,4.43536891]
[1770136683472,0.01333096,2256.0,2254.4,4.4357665]
[1770136683754,0.01333096,2255.9,2254.7,1.10878124]
[1770136684370,0.01333096,2255.9,2254.7,0.55441337]
[1770136684371,1.10825427,2255.8,2254.7,0.55441337]
[1770136684560,0.01333096,2255.5,2254.3,1.10894251]
[1770136684744,0.01333096,2255.5,2253.3,11.7595629]
[1770136684745,0.01333096,2255.1,2253.3,11.7595629]
[1770136684945,12.59681982,2255.4,2254.3,1.10898628]
[1770136685150,0.01333096,2255.6,2254.3,1.10898628]
[1770136685345,1.10825427,2255.8,2254.3,1.10898628]
[1770136685545,1.82538222,2255.7,2254.4,0.55449883]
[1770136685749,2.75538222,2255.7,2254.4,0.55449883]
[1770136685961,0.93,2255.7,2254.4,0.55449883]
[1770136686157,1.1216835,2255.6,2254.5,1.10889332]
[1770136686474,0.01333096,2255.4,2254.4,1.10893877]
[1770136686857,2.03833039,2255.7,2254.4,1.10893877]
[1770136687172,2.03833039,2255.7,2254.5,0.55448916]
[1770136687378,1.10827732,2255.8,2254.5,0.55448916]
[1770136688366,4.43283572,2255.9,2254.6,1.10884414]
[1770136689174,0.01333096,2255.5,2254.5,0.55448916]
[1770136689476,0.01333096,2255.3,2254.2,1.10904087]
[1770136689780,0.01333096,2255.3,2254.3,1.10899158]
[1770136690083,0.01333096,2255.3,2254.2,1.10900847]
[1770136690300,0.01333096,2255.3,2254.2,1.66354012]
[1770136690588,1.10854913,2255.2,2254.2,1.66354012]
[1770136690892,0.01333096,2254.9,2253.1,11.7595629]
[1770136691056,0.01333096,2254.8,2253.6,1.10933579]
[1770136691251,0.01333096,2254.7,2253.0,0.931]
[1770136691582,0.01333096,2254.7,2253.4,1.1094046]
[1770136691583,0.01333096,2254.5,2253.4,1.1094046]
[1770136691803,13.70536895,2255.2,2254.2,1.10903614]
[1770136692080,0.93,2255.0,2254.2,1.10903614]
[1770136692298,0.93,2255.0,2254.5,0.001]
[1770136692491,2.0386527,2255.0,2254.5,0.001]
[1770136692704,1.10862509,2255.1,2254.5,0.001]
[1770136692864,2.03858013,2255.2,2254.5,0.001]
[1770136693064,0.93,2255.2,2254.5,0.001]
[1770136693273,0.0011,2255.9,2254.5,11.7605629]
[1770136693474,0.0011,2256.1,2255.0,11.77289386]
[1770136693673,0.0011,2257.1,2255.3,0.01333096]
[1770136693895,0.93,2257.0,2255.4,0.01333096]
[1770136694094,2.83660806,2257.0,2255.2,0.94333096]
[1770136694402,2.83660806,2257.0,2255.5,1.10840168]
[1770136694403,1.10771412,2256.9,2255.5,1.10840168]
[1770136694565,1.10768281,2257.0,2255.5,12.88129554]
[1770136694761,1.1087457,2257.1,2255.6,0.01333096]
[1770136694992,1.1087457,2257.1,2255.5,1.10840168]
[1770136695599,1.12207666,2257.1,2255.5,1.10840168]
[1770136695891,3.46239431,2257.1,2255.6,0.55553394]
[1770136696063,0.0011,2257.1,2255.6,0.5688649]
[1770136696262,0.0011,2257.1,2256.1,0.01333096]
[1770136696462,0.0011,2257.1,2255.9,1.10820515]
[1770136696680,0.0011,2257.1,2255.9,1.12153611]
[1770136697682,0.0011,2257.1,2255.9,1.10820515]
[1770136697889,0.0011,2257.1,2256.0,1.73005886]
[1770136698099,0.0011,2257.1,2255.9,1.10820515]
[1770136698867,0.0011,2257.1,2256.0,0.01333096]
[1770136699089,13.52791982,2257.8,2256.0,0.01333096]
[1770136699090,1.10837807,2257.8,2256.2,11.7595629]
[1770136699294,1.10837807,2257.8,2256.0,0.01333096]
[1770136699495,1.10837313,2257.8,2256.3,0.01333096]
[1770136699687,1.10837313,2257.8,2256.3,1.19328654]
[1770136699889,12.61015078,2257.7,2256.3,1.17995558]
[1770136700172,0.01333096,2257.4,2255.9,1.10820515]
[1770136700400,12.61015078,2257.6,2255.9,1.10820515]
[1770136700600,1.10741971,2257.5,2255.9,1.10820515]
[1770136701405,12.99597931,2257.1,2255.8,1.10823241]
[1770136701709,0.01333096,2256.8,2255.3,4.43385572]
[1770136701999,0.01333096,2256.3,2254.6,13.82663413]
[1770136702200,12.98264835,2256.5,2255.1,1.10855259]
[1770136702400,1.29959793,2256.4,2255.3,1.108493]
[1770136702696,1.29959793,2256.4,2255.0,0.01333096]
[1770136702697,3.33657203,2256.4,2255.0,0.01333096]
[1770136702898,2.0369741,2256.4,2255.0,0.01333096]
[1770136703102,1.10781229,2256.7,2255.0,0.01333096]
[1770136703414,14.83470633,2256.6,2254.8,0.01333096]
[1770136703595,0.01333096,2256.4,2254.7,1.10879496]
[1770136703909,12.99597931,2256.1,2254.7,1.10879496]
[1770136704208,12.99597931,2256.1,2254.6,5.61123613]
[1770136704209,15.19322747,2256.0,2254.6,1.10882963]
[1770136704393,0.929,2255.9,2254.6,1.10882963]
[1770136704590,1.10825427,2255.8,2254.5,0.001]
[1770136704909,2.03724204,2255.9,2254.5,0.001]
[1770136705088,2.03724204,2255.9,2254.5,0.57163398]
[1770136705494,2.03724204,2255.9,2254.9,0.001]
[1770136706814,4.4328206,2256.0,2254.9,0.001]
[1770136706815,1.10819695,2256.0,2254.9,0.001]
[1770136706978,4.43187079,2256.4,2255.0,0.01333096]
[1770136706979,1.10795958,2256.4,2255.0,0.01333096]
[1770136707181,2.40864515,2257.0,2255.3,0.01333096]
[1770136707389,2.03659833,2257.2,2255.7,0.01333096]
[1770136707584,2.03659833,2257.2,2255.8,0.01333096]
[1770136707788,2.03659833,2257.2,2256.0,0.01333096]
[1770136708012,1.10855478,2257.5,2256.0,0.01333096]
[1770136708208,1.10855478,2257.5,2256.1,0.01333096]
[1770136708528,1.10855478,2257.5,2255.8,1.10825427]
[1770136708529,2.51767509,2257.5,2255.8,1.10825427]
[1770136708736,12.99597931,2257.3,2255.8,1.10825427]
[1770136709224,0.01333096,2257.1,2255.7,1.10826628]
[1770136709709,12.99597931,2257.2,2255.7,1.10826628]
[1770136709710,12.98264835,2257.2,2255.7,1.10826628]
[1770136709911,1.29826483,2257.1,2255.8,0.55414799]
[1770136710272,12.99597931,2256.6,2255.2,1.10852383]
[1770136710478,1.10795958,2256.4,2254.9,0.001]
[1770136710981,1.10795958,2256.4,2255.0,0.01333096]
[1770136711176,0.929,2256.4,2255.1,0.01333096]
[1770136711475,1.10771412,2257.0,2255.3,0.01333096]
[1770136711698,0.929,2256.9,2255.5,0.01333096]
[1770136712383,0.929,2256.9,2255.3,0.01333096]
[1770136712588,1.1077632,2256.8,2255.4,1.10845082]
[1770136712790,1.7545448,2256.8,2255.5,0.55555851]
[1770136714710,1.7545448,2256.8,2255.6,1.10835254]
[1770136715321,14.28091318,2257.1,2255.6,1.1216835]
[1770136715486,14.28091318,2257.1,2256.0,0.01333096]
[1770136715487,0.929,2257.1,2256.0,0.01333096]
[1770136715692,1.10751783,2257.4,2256.1,0.01333096]
[1770136715892,0.929,2257.3,2256.1,0.01333096]
[1770136716289,1.10751783,2257.4,2256.1,0.01333096]
[1770136716514,0.929,2257.3,2256.1,0.01333096]
[1770136716724,1.10756689,2257.2,2256.2,1.10805779]
[1770136717728,1.10756689,2257.2,2256.0,1.10812861]
[1770136717935,1.10756689,2257.2,2256.0,1.10812171]
[1770136718096,0.91111425,2257.1,2255.8,1.10822969]
[1770136718291,0.91111425,2257.0,2255.9,1.10820424]
[1770136718506,15.22579006,2257.2,2255.9,1.10820424]
[1770136718707,1.10766504,2257.0,2255.6,1.10835254]
[1770136719693,1.10766504,2257.0,2255.6,1.1216835]
[1770136719896,1.10766504,2257.0,2255.8,0.01333096]
[1770136720091,0.929,2257.1,2256.4,0.01333096]
[1770136720296,1.10852141,2257.5,2256.6,0.01333096]
[1770136720633,0.929,2257.4,2256.6,0.01333096]
[1770136720795,2.03650057,2257.4,2256.7,1.10781229]
[1770136720996,2.03650057,2257.4,2256.4,1.10794623]
[1770136721197,3.126228,2257.4,2256.6,1.10786103]
[1770136721407,0.929,2257.4,2256.6,1.10786103]
[1770136721825,2.03647875,2257.4,2256.3,4.43195953]
[1770136722000,2.03647875,2257.4,2256.2,1.10803331]
[1770136722200,2.03647875,2257.4,2255.8,17.09787529]
[1770136722201,0.91469734,2257.3,2256.3,1.10799986]
[1770136722400,1.20981495,2257.2,2256.1,1.10807868]
[1770136722613,0.29511761,2257.2,2256.1,1.10807868]
[1770136722815,15.00583661,2257.1,2255.8,1.10922073]
[1770136723037,2.05114712,2257.0,2255.8,0.001]
[1770136723218,16.64793661,2256.9,2255.8,0.001]
[1770136723419,1.13557482,2256.7,2255.8,0.001]
[1770136723632,1.13557482,2256.5,2255.5,0.001]
[1770136723933,1.13557482,2256.1,2254.9,0.001]
[1770136724101,1.13557482,2255.9,2254.9,1.10969636]
[1770136724303,2.05114712,2255.9,2254.9,0.001]
[1770136724519,0.929,2255.8,2254.9,0.001]
[1770136724720,0.9155723,2255.7,2254.9,0.001]
[1770136724922,2.02392484,2255.6,2254.9,0.001]
[1770136725215,2.29032706,2255.6,2254.9,0.001]
[1770136725412,0.929,2255.5,2254.9,0.001]
[1770136727419,1.10845082,2255.4,2254.9,0.001]
[1770136729025,1.10845082,2255.4,2254.5,0.001]
[1770136729225,0.929,2255.3,2254.5,0.001]
[1770136729424,1.10854913,2255.2,2254.5,0.001]
[1770136729847,0.91432991,2255.1,2253.7,0.03]
[1770136730138,14.11822317,2255.1,2253.7,0.03]
[1770136730308,15.66382822,2255.0,2253.7,0.03]
[1770136730506,0.91432991,2254.9,2253.7,0.03]
[1770136730711,1.10854913,2255.2,2254.0,0.01333096]
[1770136730915,3.15746561,2255.2,2254.0,0.01333096]
[1770136731114,0.91334166,2255.1,2254.0,0.01333096]
[1770136731445,1.10854913,2255.2,2254.0,1.12246498]
[1770136731640,1.67335711,2255.1,2253.8,1.12253991]
[1770136731847,0.91262506,2255.0,2253.9,1.10918377]
[1770136732017,0.76073205,2255.1,2254.1,0.01333096]
[1770136732419,13.28403635,2255.1,2254.0,1.10913737]
[1770136732636,13.28403635,2255.1,2254.1,0.01333096]
[1770136732637,0.76073205,2255.1,2254.1,0.01333096]
[1770136732840,0.929,2255.0,2254.1,0.57056661]
[1770136733522,0.929,2254.9,2254.2,1.1090409]
[1770136734844,0.929,2254.9,2253.9,0.001]
[1770136735420,1.10874578,2254.8,2253.9,0.001]
[1770136736229,13.4994889,2254.8,2253.7,0.03]
[1770136736433,0.64727289,2254.7,2253.7,1.13926457]
[1770136736636,0.64727289,2254.7,2253.7,0.03]
[1770136736837,0.64727289,2254.7,2253.7,1.13927795]
[1770136737037,0.64727289,2254.7,2253.7,0.03]
[1770136737238,1.41467618,2254.6,2253.7,0.03]
[1770136737439,1.10888458,2254.6,2253.7,1.13928397]
[1770136738649,1.10888458,2254.6,2253.7,0.03]
[1770136739743,13.4996277,2254.6,2253.3,0.001]
[1770136740053,0.2335703,2254.3,2253.3,0.001]
[1770136740222,13.32074312,2254.2,2253.3,0.001]
[1770136740429,12.49314312,2254.0,2253.0,0.001]
[1770136740754,1.35543134,2254.1,2253.0,0.001]
[1770136740957,1.10888458,2254.6,2253.6,1.10933475]
[1770136741275,1.10888458,2254.6,2253.1,0.01333096]
[1770136741276,0.93,2254.5,2253.1,0.01333096]
[1770136741421,0.93,2254.5,2253.4,1.10940846]
[1770136741626,1.10894251,2254.4,2253.0,4.4395134]
[1770136742056,2.03892952,2254.5,2253.4,0.01333096]
[1770136742428,2.03892952,2254.5,2253.2,0.01333096]
[1770136742635,3.19465192,2254.5,2253.2,1.67192196]
[1770136742852,2.03892952,2254.5,2253.4,0.01333096]
[1770136743530,2.03892952,2254.5,2253.3,1.10948386]
[1770136743837,2.03892952,2254.5,2253.4,0.01333096]
[1770136744041,2.03892952,2254.5,2253.3,1.12281482]
[1770136744042,2.03892952,2254.5,2253.3,1.10948386]
[1770136744440,2.03892952,2254.5,2253.2,1.10950778]
[1770136744641,1.8865121,2254.4,2253.1,1.10954548]
[1770136744845,14.27725522,2254.4,2253.1,1.10954548]
[1770136745764,12.39074312,2254.1,2253.0,0.001]
[1770136746153,1.1089917,2254.3,2253.0,0.001]
[1770136746571,13.49973482,2254.3,2253.0,0.001]
[1770136746754,1.98222137,2254.2,2253.0,0.001]
[1770136747172,1.1089917,2254.3,2253.0,0.001]
[1770136747465,12.39074312,2254.2,2253.0,0.001]
[1770136747639,1.10918851,2253.9,2253.3,0.001]
[1770136747835,0.93,2253.8,2253.0,0.001]
[1770136748035,0.93,2253.8,2252.8,0.001]
[1770136748036,12.49314312,2253.7,2252.7,0.001]
[1770136748277,0.1024,2253.7,2252.5,0.001]
[1770136748446,11.77223956,2254.0,2252.6,0.01333096]
[1770136748447,0.93,2253.6,2252.6,0.01333096]
[1770136748635,0.0011,2254.8,2253.2,0.01333096]
[1770136748980,0.93,2254.6,2253.4,0.01333096]
[1770136749337,0.93,2254.6,2253.1,0.01333096]
[1770136749536,0.93,2254.6,2253.2,0.01333096]
[1770136749737,1.10889332,2254.5,2253.3,1.10948386]
[1770136749952,1.10889332,2254.5,2253.3,1.12281482]
[1770136750158,1.10889332,2254.5,2253.4,0.55740813]
[1770136750742,1.10881303,2254.7,2253.4,0.57073909]
[1770136751040,0.0011,2254.8,2253.8,0.01333096]
[1770136751256,0.0011,2254.8,2253.9,0.01333096]
[1770136751454,0.9311,2254.8,2253.7,0.01333096]
[1770136751956,0.9311,2254.8,2253.8,1.10923773]
[1770136752153,2.03986618,2254.8,2253.9,0.55595196]
[1770136752351,2.03986618,2254.8,2253.5,1.10935396]
[1770136752571,2.03986618,2254.8,2253.6,1.10933095]
[1770136752572,0.91093155,2254.7,2253.6,1.10933095]
[1770136752744,2.03986618,2254.8,2253.5,4.43753902]
[1770136753076,0.64748493,2254.7,2253.7,1.10926481]
[1770136753247,1.10986618,2254.8,2253.7,1.10926481]
[1770136753444,0.93,2254.6,2253.5,1.72346605]
[1770136753648,0.93,2254.6,2253.6,1.10932887]
[1770136753849,0.93,2254.6,2253.5,2.81948455]
[1770136753850,2.02088677,2254.5,2253.5,2.81948455]
[1770136754052,0.73864601,2254.4,2253.5,1.10934946]
[1770136754759,0.73864601,2254.4,2253.4,1.10941642]
[1770136754958,0.91231683,2254.3,2253.2,1.10949692]
[1770136755157,0.91222946,2254.2,2253.2,1.10949692]
[1770136755369,0.91241386,2254.1,2253.3,1.10947543]
[1770136755683,0.73864601,2254.4,2253.3,1.10945851]
[1770136755883,0.29877651,2254.3,2253.3,1.10945851]
[1770136756092,1.1090901,2254.1,2253.0,4.43852215]
[1770136756251,1.1090901,2254.1,2253.0,1.1096316]
[1770136756452,0.91287331,2254.0,2253.0,1.1096316]
[1770136756653,0.91272201,2253.9,2252.8,1.10971084]
[1770136756965,2.2493159,2254.1,2252.9,1.10965743]
[1770136757148,1.67429268,2254.0,2252.9,1.10965743]
[1770136757480,1.67429268,2254.0,2252.9,1.10965347]
[1770136757481,2.05295498,2253.9,2252.9,1.10965347]
[1770136757684,0.91272918,2253.8,2252.9,1.10965347]
[1770136757888,0.91272918,2253.7,2252.9,1.10965347]
[1770136758060,1.10918851,2253.9,2252.6,4.43930759]
[1770136758261,1.65725225,2253.8,2252.6,5.43959844]
[1770136758450,0.91247906,2253.7,2252.6,5.43959844]
[1770136759155,0.74477319,2253.8,2252.7,0.01333096]
[1770136759454,1.10908459,2254.2,2253.1,0.01333096]
[1770136759654,0.91299345,2254.1,2253.1,0.01333096]
[1770136759864,0.91302442,2254.0,2253.0,0.01333096]
[1770136760048,1.10908459,2254.2,2253.0,0.01333096]
[1770136760253,2.78301935,2254.1,2253.1,1.10958235]
[1770136760552,1.10910926,2254.1,2253.1,1.10958235]
[1770136760985,0.0011,2254.2,2253.1,1.12291331]
[1770136761189,0.93,2254.0,2253.2,0.01333096]
[1770136761856,0.91227584,2253.9,2253.0,0.001]
[1770136762072,0.91227584,2253.8,2253.0,0.001]
[1770136762350,3.16203266,2253.7,2253.0,0.001]